Cogmind - Beta 11.1 *** ADVENTURER MODE // 2022.06.29 @ 04:53:31 Player: Olexender Result: Destroyed by G-50 Soldier with Heavy Laser Performance ------------- Evolutions (2) 1000 Regions Visited (4) 800 Robots Destroyed (121) 605 Value Destroyed (3101) 3101 Prototype IDs (14) 280 Alien Tech Used (0) 0 Bonus (469) 469 TOTAL SCORE: 6255 Bonus ------- High Alert Combat Kills 379 Follower Combat Kills 97 Friendly Fire -7 Cogmind --------- Core Integrity 0/550 Matter 169/300 Energy 460/460 System Corruption 1% Temperature Hot (233) Movement Core (1750) Ox34 Location -8/Storage Parts ------- > --- POWER (2) -------- Heavy Ion Engine Heavy Ion Engine > --- PROPULSION (3) --- (None) > --- UTILITY (4) ------ Cryofiber Web Huge Storage Unit Machine Analyzer ECM Suite > --- WEAPON (2) ------- Flak Gun Spear > --- INVENTORY (25) --- Large Battery (200) High-capacity Matter Pod (200) Improved Terrain Scan Processor Transport Network Coupler Heavy EM Shotgun Heavy EM Shotgun Particle Gun Precision Beam Rifle Improved Assault Rifle Improved Assault Rifle Improved Assault Rifle Flak Gun Flak Gun Flak Gun Heavy Flail Spear Spear Peak State ------------ > --- POWER ------------ Heavy Ion Engine Heavy Ion Engine > --- PROPULSION ------- Wheel Wheel > --- UTILITY ---------- Cryofiber Web Huge Storage Unit Machine Analyzer ECM Suite > --- WEAPON ----------- Precision Beam Rifle Flak Gun > --- INVENTORY -------- Large Battery High-capacity Matter Pod Improved Terrain Scan Processor Transport Network Coupler Heavy EM Shotgun Heavy EM Shotgun Particle Gun Improved Assault Rifle Improved Assault Rifle Improved Assault Rifle Flak Gun Flak Gun Flak Gun Heavy Flail Spear Spear Spear [Rating: 29] Favorites ----------- Power Heavy Ion Engine Engine Heavy Ion Engine Power Core Light Nuclear Core Propulsion Compact Wheel Leg Aluminum Leg Wheel Compact Wheel Hover Unit Improved Hover Unit Utility ECM Suite Device ECM Suite Storage Huge Storage Unit Processor Terrain Scan Processor Weapon Enhanced Autogun Energy Gun Particle Gun Energy Cannon Advanced Beam Cannon Ballistic Gun Enhanced Autogun Special Weapon Plasma Cutter Piercing Weapon Spear Build | -11 -10 -9 -8 -8 ------- Run | Scr Mat Mat Mat Sto Slots Evolved 4 | . . 2 2 . Power 1 | . . . 1 . Propulsion 1 | . . 1 . . Utility 2 | . . 1 1 . Weapon . | . . . . . Parts Attached 95 | 6 11 19 49 10 Power 14 | 1 . 3 10 . Engine 11 | 1 . 2 8 . Core 3 | . . 1 2 . Reactor . | . . . . . Propulsion 32 | 2 3 9 17 1 Treads . | . . . . . Leg 4 | . . 3 1 . Wheel 20 | 2 1 . 16 1 Hover 8 | . 2 6 . . Flight . | . . . . . Utility 15 | 1 4 1 8 1 Device 10 | 1 3 1 4 1 Storage 1 | . . . 1 . Processor 4 | . 1 . 3 . Hackware . | . . . . . Protection . | . . . . . Artifact . | . . . . . Weapon 34 | 2 4 6 14 8 Energy Gun 7 | . . 1 4 2 Energy Cannon 1 | . . 1 . . Ballistic Gun 17 | 2 2 3 7 3 Ballistic Cannon . | . . . . . Launcher . | . . . . . Special Weapon 5 | . 2 1 2 . Impact Weapon . | . . . . . Slashing Weapon . | . . . . . Piercing Weapon 4 | . . . 1 3 Special Melee Weapon . | . . . . . Unidentified Prototypes 9 | . . 2 5 2 Parts Lost 35 | . 3 9 21 2 Power 6 | . . 2 4 . Propulsion 17 | . . 4 11 2 Utility 7 | . 2 1 4 . Weapon 5 | . 1 2 2 . Highest Loss Streak 5 | . 2 5 5 2 To Critical Strikes . | . . . . . Average Slot Usage (%) 89 | . 95 91 87 83 Engine 11 | . 14 9 10 18 Core 3 | . . 1 6 . Leg 1 | . . 8 . . Wheel 12 | . 17 . 16 12 Hover 7 | . 10 21 2 . Device 17 | . 14 19 17 16 Storage 4 | . . . 6 9 Processor 9 | . 9 11 9 9 Energy Gun 4 | . . . 6 5 Energy Cannon 1 | . . 4 . . Ballistic Gun 12 | . 22 13 9 8 Special Weapon 1 | . 4 1 . . Naked Turns . | . . . . . Heaviest Build 107 | 9 11 17 107 105 Greatest Support 48 | 32 32 21 48 20 Greatest Overweight (x) 35 | . . 2 35 34 Average Overweight (x) 1 | . . . 3 8 Largest Inventory Capacity 25 | 5 5 5 25 25 Average Capacity 13 | 5 5 5 19 25 Most Carried 17 | 5 5 5 14 17 Average Carried 7 | 3 4 4 9 14 Final Capacity 25 | 5 5 5 25 25 Final Carried 17 | 5 5 5 14 17 Class Distribution -------------------- 55% | Mutant 35% | Scavenger-Mutant 9% | Infiltrator-Mutant Dominant Class ---------------- Mutant | -10/Materials Mutant | -9/Materials Scavenger-Mutant | -8/Materials Mutant | -8/Storage Resources | -11 -10 -9 -8 -8 ----------- Run | Scr Mat Mat Mat Sto Matter Collected 2950 | 152 529 857 1380 32 Remotely . | . . . . . Salvage Created 4263 | 127 614 1202 2189 131 Parts 267 | 19 38 80 126 4 Haulers Intercepted 10 | . 1 4 5 . Recyclers Shooed 2 | 1 . . 1 . Parts Field Recycled . | . . . . . Retrieved Matter . | . . . . . Parts Self-Destructed . | . . . . . Prevented . | . . . . . Kills | -11 -10 -9 -8 -8 ------- Run | Scr Mat Mat Mat Sto Combat Hostiles Destroyed 83 | . 11 27 42 3 Guns 67 | . 9 16 39 3 Cannons 16 | . 2 11 3 . Classes Destroyed 13 | 2 4 4 2 1 Worker 5 | . . 2 3 . Builder 3 | . 1 . 2 . Tunneler 5 | 4 . . 1 . Hauler 10 | . 1 4 5 . Recycler 2 | 1 . . 1 . Mechanic 1 | . . . 1 . Operator 2 | . . 1 1 . Watcher 10 | . 2 4 4 . Swarmer 26 | . . 13 13 . Grunt 36 | . 11 9 15 1 Brawler 1 | . . . . 1 Sentry 17 | . . 5 11 1 Hunter 3 | . . . 3 . Best Kill Streak 12 | 4 5 12 8 2 Combat Bots Only 7 | . 4 7 5 2 Max Kills in Single Turn 1 | 1 1 1 1 1 Gunslinging . | . . . . . Exploded . | . . . . . Melee . | . . . . . Uniques/NPCs Destroyed . | . . . . . Combat | -11 -10 -9 -8 -8 -------- Run | Scr Mat Mat Mat Sto Damage Taken 3817 | . 391 974 2020 432 Core 852 | . 68 230 484 70 Absorbed by Shields . | . . . . . Core Remaining (%) 71 | 100 72 42 . . Volleys Fired 360 | 10 42 119 172 17 Largest 2 | 2 2 2 2 2 Hottest 168 | 40 40 91 168 93 Shots Fired 660 | 20 78 203 326 33 Gun 577 | 20 69 144 311 33 Cannon 57 | . . 49 8 . Launcher . | . . . . . Special 26 | . 9 10 7 . Kinetic 476 | 20 69 144 226 17 Thermal 184 | . 9 59 100 16 Explosive . | . . . . . Electromagnetic . | . . . . . Robot Hit Streak 23 | 8 21 17 23 13 Robot Miss Streak 6 | 1 2 4 6 2 Penetration Max . | . . . . . Secondary Targets 9 | . 1 2 6 . Max Gunslinging Chain 1 | . 1 1 1 . Shots Hit Robots 471 | 13 62 141 232 23 Core Hits 217 | 7 28 48 114 20 Critical Kills . | . . . . . Critical Parts Destroyed 1 | . . . 1 . Critical Strikes 11 | . . . 9 2 Burn 10 | . . . 8 2 Destroy 1 | . . . 1 . Melee Attacks 3 | . . . 2 1 Impact . | . . . . . Slashing . | . . . . . Piercing 3 | . . . 2 1 Sneak Attacks . | . . . . . Combat Hostiles . | . . . . . Follow-up Attacks . | . . . . . Damage Inflicted 7750 | 143 783 2306 4003 515 Guns 6554 | 143 714 1380 3802 515 Cannons 982 | . . 839 143 . Explosions . | . . . . . Melee . | . . . . . Ramming . | . . . . . Kinetic 5191 | 143 714 1380 2639 315 Thermal 2559 | . 69 926 1364 200 Explosive . | . . . . . Electromagnetic . | . . . . . Impact . | . . . . . Slashing . | . . . . . Piercing . | . . . . . Highest Corruption 1 | . 1 1 1 1 Average Corruption 1 | . 1 1 1 1 Corruption Purged . | . . . . . Corruption Blocked . | . . . . . Effects 17 | . 7 3 4 3 Message Errors 5 | . 1 1 1 2 Matter Fused 3 | . 2 . 1 . Heat Flow Errors 1 | . 1 . . . Energy Discharges 3 | . 2 . 1 . Data Loss (minor) 1 | . . 1 . . Misfires 1 | . 1 . . . Alerts 2 | . . . 1 1 Weapon Failures 1 | . . 1 . . Overload Shots . | . . . . . Overflow Damage 9 | . . 4 5 . Projectiles 9 | . . 4 5 . Explosions . | . . . . . Melee . | . . . . . Knockbacks . | . . . . . Impact . | . . . . . Kinetic . | . . . . . Secondary . | . . . . . Self-Inflicted Damage . | . . . . . Shots . | . . . . . Rammed . | . . . . . Targets Rammed . | . . . . . Kicked . | . . . . . Crushed . | . . . . . Highest Temperature 454 | . 241 284 454 257 Average Temperature 73 | . 64 91 65 138 Received Heat Transfer 1728 | . 237 456 720 315 Effects 2 | . . 1 1 . Energy Bleed 1 | . . 1 . . Short Circuit 1 | . . . 1 . Siege Activations . | . . . . . Robots Corrupted . | . . . . . Combat Hostiles . | . . . . . Parts Fried . | . . . . . Impact Corruptions . | . . . . . Robots Melted . | . . . . . Combat Hostiles . | . . . . . Parts Melted 8 | . . 4 4 . Heat Transferred 6019 | . 222 1813 3467 517 Parts Sabotaged . | . . . . . Parts Stolen . | . . . . . Parts Stripped . | . . . . . Power Chain Reactions . | . . . . . Missiles Intercepted . | . . . . . Alert | -11 -10 -9 -8 -8 ------- Run | Scr Mat Mat Mat Sto Peak Influence 774 | 25 194 686 774 237 Initial 180 | . 13 69 180 88 Average 357 | 8 77 374 488 125 Maximum Alert Level 3 | . . 2 3 1 Low Security (%) 31 | 100 100 17 2 93 Level 1 26 | . . 44 32 6 Level 2 36 | . . 38 54 . Level 3 5 | . . . 10 . Level 4 . | . . . . . Level 5 . | . . . . . High Security . | . . . . . Max Security . | . . . . . Squads Dispatched 17 | . 3 2 10 2 Investigation 9 | . 3 1 5 . Extermination . | . . . . . Reinforcement 2 | . . 1 1 . Assault 3 | . . . 1 2 Garrison 3 | . . . 3 . Intercept . | . . . . . Searches Triggered . | . . . . . Construction Impeded . | . . . . . Haulers Reinforced . | . . . . . Active Scanning Responses . | . . . . . Cargo Convoy Interrupts . | . . . . . Stealth | -11 -10 -9 -8 -8 --------- Run | Scr Mat Mat Mat Sto Distress Signals 5 | . 1 3 1 . Communications Jammed . | . . . . . Distress Signals . | . . . . . Times Spotted 140 | . 20 37 70 13 Peak Tracking Total 9 | . 3 5 9 9 Tactical Retreats 9 | . . 3 6 . Traps | -11 -10 -9 -8 -8 ------- Run | Scr Mat Mat Mat Sto Traps Triggered 9 | . 4 1 4 . Indirectly . | . . . . . Trap Hack Attempts . | . . . . . Triggered . | . . . . . Disarmed . | . . . . . Reprogrammed . | . . . . . Reused . | . . . . . Traps Extracted . | . . . . . Installed . | . . . . . Triggered . | . . . . . Machines | -11 -10 -9 -8 -8 ---------- Run | Scr Mat Mat Mat Sto Machines Disabled 7 | . . 3 3 1 Max in Single Turn 1 | . . 1 1 1 Machines Sabotaged . | . . . . . Garrisons Compromised . | . . . . . Overloaded Fab Kills . | . . . . . Hacking | -11 -10 -9 -8 -8 --------- Run | Scr Mat Mat Mat Sto Machines Accessed 23 | . 10 3 9 1 Terminals 17 | . 8 2 6 1 Fabricators . | . . . . . Repair Stations . | . . . . . Recycling Units 4 | . 2 . 2 . Scanalyzers 2 | . . 1 1 . Garrison Access . | . . . . . Total Hacks 80 | . 34 11 33 2 Successful 55 | . 23 10 22 . Failed 25 | . 11 1 11 2 Catastrophic 3 | . 1 . 1 1 Database Lockouts . | . . . . . Manual . | . . . . . Terminals 60 | . 28 7 23 2 Fabricators . | . . . . . Repair Stations . | . . . . . Recycling Units 14 | . 6 . 8 . Scanalyzers 6 | . . 4 2 . Garrison Access . | . . . . . Terminal Hacks 42 | . 18 6 18 . Record 5 | . 2 3 . . Prototype ID Bank 3 | . 1 . 2 . Level Access Points 2 | . . 1 1 . Emergency Access Points 1 | . . . 1 . Terminal Index 1 | . 1 . . . Repair Station Index 1 | . 1 . . . Recycling Unit Index 1 | . 1 . . . Alert Level 1 | . . . 1 . Unreport Threat 3 | . 1 . 2 . Locate Traps 2 | . 2 . . . Dispatch Records 5 | . 2 . 3 . Maintenance Status 2 | . 1 . 1 . Transport Status 1 | . . . 1 . Recall Investigation 1 | . . 1 . . Hauler Manifests 5 | . 3 . 2 . Registered Components 1 | . . . 1 . Registered Prototypes 1 | . 1 . . . Zone Layout 6 | . 2 1 3 . Fabricator Hacks . | . . . . . Repair Station Hacks . | . . . . . Recycling Unit Hacks 9 | . 5 . 4 . Process 1 | . 1 . . . Report Inventory 5 | . 2 . 3 . Retrieve Matter 2 | . 2 . . . Retrieve Components 1 | . . . 1 . Scanalyzer 4 | . . 4 . . Insert Component 2 | . . 2 . . Analyze 2 | . . 2 . . Garrison Access Hacks . | . . . . . Unauthorized Hacks . | . . . . . Terminals . | . . . . . Fabricators . | . . . . . Repair Stations . | . . . . . Recycling Units . | . . . . . Scanalyzers . | . . . . . Garrison Access . | . . . . . Data Cores Recovered . | . . . . . Used . | . . . . . Hacking Detections 20 | . 9 2 8 1 Full Trace Events 8 | . 2 1 4 1 Feedback Events 1 | . . . 1 . Corruption 1 | . . . 1 . Feedback Blocked . | . . . . . Robot Schematics Acquired . | . . . . . Robots Built . | . . . . . Authchips . | . . . . . Time . | . . . . . Total Robot Build Rating . | . . . . . Part Schematics Acquired 2 | . . 2 . . Parts Built . | . . . . . Authchips . | . . . . . Time . | . . . . . Total Part Build Rating . | . . . . . Parts Repaired . | . . . . . Time . | . . . . . Parts Recycled . | . . . . . Recycled Matter 7 | . 7 . . . Retrieved Matter 7 | . 7 . . . Retrieved Components 10 | . . . 10 . Parts Scanalyzed 2 | . . 2 . . Part Schematics Acquired 2 | . . 2 . . Parts Damaged . | . . . . . Bothacking | -11 -10 -9 -8 -8 ------------ Run | Scr Mat Mat Mat Sto Used RIF Installer . | . . . . . Robots Hacked . | . . . . . Non-combat . | . . . . . Combat . | . . . . . Robot Hacks Applied . | . . . . . Relay Couplers Released . | . . . . . Fabnet Peak Effective % . | . . . . . Robots Rewired . | . . . . . Allies Hacked . | . . . . . Hacks Repelled . | . . . . . Allies | -11 -10 -9 -8 -8 -------- Run | Scr Mat Mat Mat Sto Total Allies 2 | . . . . 2 Largest Group 2 | . . . . 2 Highest-Rated Group 62 | . . . . 62 Highest-Rated Ally 31 | . . . . 31 Total Orders . | . . . . . Ally Attacks 31 | . . . . 31 Total Damage 498 | . . . . 498 Kills 3 | . . . . 3 Allies Corrupted . | . . . . . Allies Melted . | . . . . . Intel | -11 -10 -9 -8 -8 ------- Run | Scr Mat Mat Mat Sto Robot Analysis Total . | . . . . . Derelict Logs Recovered . | . . . . . Drone Launches . | . . . . . Drone Recoveries . | . . . . . Exploration | -11 -10 -9 -8 -8 ------------- Run | Scr Mat Mat Mat Sto Turns Passed 4195 | 79 766 855 2219 276 Spaces Moved 2602 | 40 736 581 1143 102 Core 26 | 13 . . 12 1 Treads . | . . . . . Legs 150 | . . 141 9 . Wheels 1374 | 27 352 . 894 101 Hover 1052 | . 384 440 228 . Flight . | . . . . . Fastest Speed 50 | 50 56 52 52 155 Average Speed 111 | 83 77 79 141 214 Slowest Speed 1800 | 100 100 190 1800 1750 Overloaded Moves . | . . . . . Propulsion Burnouts . | . . . . . Robots Hopped . | . . . . . Cave-ins Triggered . | . . . . . Exploration Rate (%) 54 | 4 97 58 91 20 Regions Visited 4 Branch Regions 1 Pre-discovered Areas . | . . . . . Known Exits Taken 1 | . . 1 . . Unknown Exits Taken 3 | 1 1 . 1 . Scrap Searched . | . . . . . Spaces Dug 1 | . . . 1 . Terrain Destroyed 3 | . . . 3 . Melee 1 | . . . 1 . Projectile 2 | . . . 2 . AOE . | . . . . . Terrain Rammed . | . . . . . Walls Destroyed . | . . . . . Machines Disabled . | . . . . . Actions | -11 -10 -9 -8 -8 --------- Run | Scr Mat Mat Mat Sto Total 3322 | 67 851 784 1485 135 Wait 127 | . 42 32 53 . Move 2598 | 39 735 580 1142 102 Hop . | . . . . . Pick Up 89 | 11 11 18 44 5 Fast Attach 15 | 1 2 4 8 . Attach 43 | 5 4 7 25 2 Detach . | . . . . . Swap 37 | . 5 8 16 8 Drop 50 | 1 10 16 23 . Fire 360 | 10 42 119 172 17 Melee 3 | . . . 2 1 Ram . | . . . . . Kick . | . . . . . Crush . | . . . . . Escape Stasis . | . . . . . Rewire . | . . . . . Trap . | . . . . . Miscellaneous . | . . . . . Route ------- -11/Scrapyard -10/Materials (discovered 5 exits: *Mat x3 / [*Min x2]) -9/Materials (discovered 4 exits: *Mat x3 / [*Min]) -8/Materials (discovered 5 exits: *Fac x3 / *Sto x2) -8/Storage History --------- Turn | Location | Event 12 | -11/Scrapyard | Discovered new exit (range 15) 80 | -11/Scrapyard | Entered Materials 288 | -10/Materials | Discovered new exit (range 15) 314 | -10/Materials | Build established: Mutant 329 | -10/Materials | Discovered new exit (range 12) 403 | -10/Materials | Discovered new exit (range 10) 557 | -10/Materials | Discovered new exit (range 13) 693 | -10/Materials | Discovered new exit (range 15) 846 | -10/Materials | Entered another Materials area 846 | -9/Materials | Evolved 2 slots: Propulsion x1, Utility x1 1351 | -9/Materials | Destroyed 7 combat bots 1555 | -9/Materials | Core integrity fell below 50% 1583 | -9/Materials | Lost 5 parts (1p2n1u1w) 1583 | -9/Materials | Discovered new exit (range 9) 1666 | -9/Materials | Identified exit to Materials 1701 | -9/Materials | Entered another Materials area 1701 | -8/Materials | Evolved 2 slots: Power x1, Utility x1 1785 | -8/Materials | Discovered new exit (range 11) 1846 | -8/Materials | Garrison activated, responded to threat 1916 | -8/Materials | Lost 5 parts (3n2w) 2152 | -8/Materials | Identified exit to Factory 2243 | -8/Materials | Lost 3 parts (1p1n1u) 2570 | -8/Materials | Build established: Scavenger-Mutant 2635 | -8/Materials | Discovered new exit (range 12) 2831 | -8/Materials | Core integrity fell below 50% 2901 | -8/Materials | First assault squad dispatched 2986 | -8/Materials | Lost 4 parts (1p3n) 3189 | -8/Materials | Lost 3 parts (2p1n) 3281 | -8/Materials | Core integrity fell below 20% 3317 | -8/Materials | Lost 3 parts (2n1u) 3591 | -8/Materials | Build established: Mutant 3630 | -8/Materials | Discovered new exit (range 10) 3920 | -8/Materials | Entered Storage 4101 | -8/Storage | Met a pair of Derelict thieves 4196 | -8/Storage | Destroyed by G-50 Soldier with Heavy Laser Last Messages --------------- 04169_ K-01 Serf collects debris. 04170_ B-36 Bruiser suffers critical hit (Burn). 04172_ K-01 Serf collects debris. 04172_ B-36 Bruiser destroyed. 04173_ A-02 Transporter destroyed. 04175_ B-36 Bruiser suffers critical hit (Burn). 04175_ B-36 Bruiser destroyed. 04177_ K-01 Serf collects debris. 04177_ UR-0GA(g) destroyed. 04180_ K-01 Serf collects debris. 04181_ G-50 Soldier destroyed. 04184_ K-01 Serf collects debris. 04185_ G-47 Trooper destroyed. 04187_ K-01 Serf collects debris. 04188_ L-31 Rogue destroyed. 04190_ Wheel destroyed. 04190_ K-01 Serf collects debris. 04191_ Wheel destroyed. 04193_ K-01 Serf collects debris. 04194_ Critical hit (Burn: +37). Map ----- +----------------------------------------------------+ | ?????????????????????????????????????????????????? | | ?????????????????????????????????????????????????? | | ?????????????????????????????????????????????????? | | ?????????????????????????????????????????????????? | | ?????????????????????????????????????????????????? | | ?????????????????????????????????????????????????? | | ???????????????????????????????????????????????### | | ??????????????????????????????????????########## | | ??????????????????????????????????????# # | | ??????????????????????????????????????# # | | ??????????????????????????????????????# """" # | | ??????????????????????"""?????????????# ""[=" # | | ??????????????????????"T"?????????????# """[ + | | ??????????????????????????????????????# "[[""" # | | ??????????????????????????????????????# "[="" # | | ?????????????????????????????########?# """" # | | ?????????????????????????????#[ [ ]#?# # | | ?????????????????????????????# ] #?########## | | ?????????????????????????????# ]]#??????????# | | ?????????????????????????????# #??????????# | | ?????????????????????????????##" "###??????????# | | ?????????????????????????????# T#???????????# | | ??????????????????????###+#### ##????????#### | | ???????????######;#####[^! ####+############T## | | ?????????? ! *ig!% | | ?????????? %%%[/g!@ | | ?????????? a %k!%%== | | ?????????????##########ggm% ###################### | | ??????????????????#######/#######????????????????? | | ??????????????????# ! * #????????????????? | | ??????????????????# #????????????????? | | ??????????????????# #????????????????? | | ??????????????????# #?????????"""?"""? | | ??????????????????# [ ! #?????????"""?"""? | | ??????????????????# #?????????"""?"""? | | ??????????????????###############????????????????? | | ?????????????????????????????????????????????????? | | ?????????????????????????????????????????????????? | | ?????????????????????????????????????????????????? | | ?????????????????????????????????????????????????? | | ?????????????????????????????????????????????????? | | ?????????????????????????????????????????????????? | | ?????????????????????????????????????????????????? | | ?????????????????????????????????????????????????? | | ?????????????????????????????????????????????????? | | ?????????????????????????????????????????????????? | | ?????????????????????????????????????????????????? | | ?????????????????????????????????????????????????? | | ?????????????????????????????????????????????????? | | ?????????????????????????????????????????????????? | +----------------------------------------------------+ Best States ------------- Heat Dissipation 50 Energy Generation 23 Energy Capacity 460 Matter Stores 300 Matter Capacity 300 Sight Range 20 Robot Scan Range 15 Terrain Scan Range 16 Terrain Scan Density 85 ECM Strength 1 Base Temperature (-) 100 Resistance: KI 20 Resistance: TH 20 Resistance: EX 20 Resistance: EM 20 Resistance: I 20 Resistance: S 20 Resistance: P 20 Evasion (%) 55 Offensive Hacking 10 Item Schematics ----------------- Lrg. Battery | -9/Materials | Scanalyzed Huge Storage Unit | -9/Materials | Scanalyzed Robot Schematics ------------------ None Fabricated ------------ Nothing Alien Tech Used ----------------- None Achievements -------------- None Challenges ------------ None Game ------ Seed BattleNeutronMinigun Manual? 0 Play Time 01:04:59 Cumulative 54.9 hours Start 2022.06.29 @ 03:38:09 End 2022.06.29 @ 04:53:31 Sessions 1 Manual Loads 0 Difficulty Adventurer Special Mode None Game No. 56 Rogue 0 Adventurer 56 Explorer 0 Win Type - Total 0 Types 0/0/0/0/0/0/0/0/0 Lore% 34 Gallery% 45 Achievement% 30 Wizard Run 0 Options --------- ASCII 0 Keyboard 0 Movement Mouse Keybinds 0 Fullscreen 1 Font 24/Smallcaps Map View 113x50 Tactical HUD 1 Map Filters NONE Filters NONE Steam 1 RUN: bc596b9e-d264-4e4a-9dc2-8a369100d9a7